bitfinex/quotes_SOLUSD_20240702
["timestamp","ask_amount","ask_price","bid_price","bid_amount"]
[1719878401523,11.35,146.82,146.76,26.4091]
[1719878401709,26.76263498,146.83,146.76,26.4091]
[1719878401710,7.10671905,146.83,146.76,15.0591]
[1719878401895,19.65587462,146.82,146.76,15.0591]
[1719878402097,19.65587462,146.82,146.77,11.35]
[1719878403117,19.65587462,146.82,146.79,100.0]
[1719878403802,31.00587462,146.82,146.81,100.0]
[1719878404121,19.65595007,146.82,146.81,100.0]
[1719878404816,19.65594106,146.82,146.81,100.0]
[1719878405809,20.0,146.84,146.83,100.0]
[1719878406007,19.65386941,146.85,146.83,100.0]
[1719878406220,31.00386941,146.85,146.83,100.0]
[1719878406517,11.35,146.85,146.83,100.0]
[1719878406723,11.35,146.88,146.87,100.0]
[1719878407099,31.00161625,146.88,146.87,100.0]
[1719878407619,19.65161625,146.88,146.87,100.0]
[1719878407822,19.65172516,146.88,146.87,100.0]
[1719878408015,11.35,146.88,146.87,100.0]
[1719878408221,51.00094718,146.88,146.87,100.0]
[1719878408524,39.65094718,146.88,146.87,100.0]
[1719878409725,39.6490182,146.88,146.87,100.0]
[1719878410518,20.0,146.88,146.87,100.0]
[1719878411003,31.35,146.88,146.85,100.0]
[1719878411527,31.35,146.88,146.8,16.2076]
[1719878411528,31.35,146.88,146.83,100.0]
[1719878412412,11.35,146.85,146.83,100.0]
[1719878413208,11.35,146.84,146.81,100.0]
[1719878414306,11.35,146.83,146.81,100.0]
[1719878414504,65.4,146.88,146.81,100.0]
[1719878414704,20.0,146.87,146.84,100.0]
[1719878414917,11.35,146.86,146.84,100.0]
[1719878415228,20.0,146.87,146.86,100.0]
[1719878415431,22.6729,146.9,146.86,100.0]
[1719878415636,11.35,146.88,146.86,100.0]
[1719878419028,11.35,146.89,146.86,100.0]
[1719878419526,14.27624857,146.92,146.88,100.0]
[1719878419702,11.35,146.91,146.88,100.0]
[1719878422021,0.832237,146.93,146.9,100.0]
[1719878422215,0.832237,146.93,146.82,100.0]
[1719878422216,11.35,146.91,146.82,100.0]
[1719878422417,11.35,146.87,146.84,100.0]
[1719878423625,20.0,146.9,146.84,100.0]
[1719878423817,20.0,146.92,146.84,100.0]
[1719878424012,11.35,146.88,146.84,100.0]
[1719878424231,20.0,146.92,146.84,100.0]
[1719878424232,11.35,146.89,146.84,100.0]
[1719878424404,20.0,146.92,146.87,100.0]
[1719878424611,11.35,146.9,146.87,100.0]
[1719878424813,20.0,146.89,146.87,100.0]
[1719878425834,11.35,146.91,146.87,100.0]
[1719878426815,8.50639149,146.93,146.87,100.0]
[1719878427019,11.35,146.91,146.87,100.0]
[1719878430028,11.35,146.9,146.87,100.0]
[1719878430721,11.35,146.91,146.87,100.0]
[1719878431629,7.10324532,146.92,146.9,100.0]
[1719878431811,0.832237,146.93,146.92,100.0]
[1719878436827,0.832237,146.93,146.92,111.35]
[1719878439544,0.832237,146.93,146.92,100.0]
[1719878447954,0.832237,146.93,146.9,100.0]
[1719878449275,0.832237,146.93,146.92,100.0]
[1719878449639,12.182237,146.93,146.88,100.0]
[1719878449843,11.35,146.92,146.88,100.0]
[1719878450045,0.832237,146.93,146.88,100.0]
[1719878450247,11.35,146.91,146.88,100.0]
[1719878450758,11.35,146.92,146.9,100.0]
[1719878453154,0.832237,146.93,146.9,100.0]
[1719878453340,0.832237,146.93,146.92,100.0]
[1719878456064,0.832237,146.93,146.92,111.35]
[1719878461937,0.832237,146.93,146.92,100.0]
[1719878462886,0.832237,146.93,146.92,111.35]
[1719878464950,0.832237,146.93,146.92,100.0]
[1719878465961,0.832237,146.93,146.92,111.35]
[1719878471547,0.832237,146.93,146.92,100.0]
[1719878471752,0.832237,146.93,146.92,111.35]
[1719878472973,0.832237,146.93,146.92,100.0]
[1719878475755,0.832237,146.93,146.92,101.36100901]
[1719878476474,0.832237,146.93,146.92,111.35]
[1719878477274,0.832237,146.93,146.92,100.0]
[1719878479172,0.832237,146.93,146.9,100.0]
[1719878479675,12.182237,146.93,146.9,100.0]
[1719878480683,0.832237,146.93,146.9,100.0]
[1719878480976,0.832237,146.93,146.92,100.0]
[1719878483671,0.832237,146.93,146.92,111.35]
[1719878484175,0.832237,146.93,146.92,211.35]
[1719878486682,0.832237,146.93,146.92,111.35]
[1719878487884,0.832237,146.93,146.92,211.35]
[1719878491787,0.832237,146.93,146.92,100.0]
[1719878498179,0.832237,146.93,146.9,100.0]
[1719878498489,16.106837,146.93,146.9,100.0]
[1719878498893,6.55,146.92,146.9,100.0]
[1719878499486,6.55,146.92,146.89,100.0]
[1719878503078,6.55,146.92,146.87,100.0]
[1719878503605,42.68,146.91,146.85,100.0]
[1719878505075,42.68,146.91,146.83,100.0]
[1719878505697,42.68,146.91,146.84,100.0]
[1719878505898,22.154,146.9,146.84,100.0]
[1719878506076,22.68,146.88,146.84,100.0]
[1719878506279,20.0,146.87,146.84,100.0]
[1719878506581,20.0,146.87,146.83,100.0]
[1719878506980,20.0,146.87,146.86,100.0]
[1719878509786,20.0,146.87,146.82,100.0]
[1719878510483,20.0,146.87,146.84,100.0]
[1719878510684,20.0,146.87,146.86,100.0]
[1719878511686,22.68,146.88,146.86,100.0]
[1719878513108,22.68,146.88,146.84,100.0]
[1719878515900,11.36,146.85,146.84,100.0]
[1719878517706,29.25177687,146.9,146.86,100.0]
[1719878517999,20.0,146.89,146.86,100.0]
[1719878518309,11.36,146.87,146.86,100.0]
[1719878520712,18.1687,146.87,146.86,100.0]
[1719878520909,18.1687,146.87,146.82,100.0]
[1719878520910,6.8105,146.84,146.82,100.0]
[1719878521112,28.3814,146.88,146.8,100.0]
[1719878521113,11.36,146.83,146.8,100.0]
[1719878521315,11.36,146.81,146.79,5.45001591]
[1719878521503,11.36,146.8,146.79,5.45001591]
[1719878522203,18.1719,146.8,146.79,5.45001591]
[1719878523011,11.36,146.8,146.79,5.45001591]
[1719878523314,11.36,146.8,146.79,105.45001591]
[1719878523516,11.36,146.8,146.79,5.45001591]
[1719878523812,6.8117,146.81,146.79,5.45001591]
[1719878525390,6.8119,146.8,146.79,5.45001591]
[1719878528404,26.8119,146.8,146.79,5.45001591]
[1719878531608,33.91286988,146.8,146.79,5.45001591]
[1719878531930,56.64286988,146.8,146.79,5.45001591]
[1719878532502,62.99906988,146.8,146.79,5.45001591]
[1719878534722,33.45716988,146.8,146.79,5.45001591]
[1719878535018,40.26906988,146.8,146.79,5.45001591]
[1719878539319,40.26906988,146.8,146.7,100.0]
[1719878539320,17.0321,146.79,146.7,100.0]
[1719878539499,6.8149,146.74,146.7,100.0]
[1719878540195,29.5444,146.75,146.7,100.0]
[1719878540400,20.0,146.74,146.68,100.0]
[1719878540798,6.8155,146.73,146.68,100.0]
[1719878541600,26.8148,146.74,146.68,100.0]
[1719878541905,6.8152,146.73,146.68,100.0]
[1719878542506,20.0,146.74,146.68,100.0]
[1719878542708,20.0,146.74,146.65,1.36330727]
[1719878542709,20.0,146.74,146.72,100.0]
[1719878543808,39.7635,146.79,146.75,100.0]
[1719878543809,6.8135,146.77,146.75,100.0]
[1719878544726,6.8138,146.76,146.75,100.0]
[1719878545454,26.8138,146.76,146.75,100.0]
[1719878545635,20.0,146.76,146.75,100.0]
[1719878545802,13.91718745,146.78,146.75,100.0]
[1719878546006,26.8133,146.77,146.75,100.0]
[1719878546234,6.8138,146.76,146.75,100.0]
[1719878547229,6.8144,146.75,146.73,100.0]
[1719878548125,6.8144,146.75,146.71,100.0]
[1719878548428,6.8155,146.73,146.69,100.0]
[1719878549729,42.73,146.77,146.72,100.0]
[1719878549921,6.8139,146.76,146.74,100.0]
[1719878550119,49.5434,146.77,146.74,100.0]
[1719878550441,26.8134,146.77,146.74,100.0]
[1719878550603,6.814,146.76,146.74,100.0]
[1719878550809,6.8143,146.75,146.74,100.0]
[1719878551010,20.0,146.77,146.72,100.0]
[1719878551214,6.8148,146.74,146.72,100.0]
[1719878555425,6.8152,146.73,146.72,100.0]
[1719878555629,6.8158,146.72,146.68,100.0]
[1719878555816,22.73,146.75,146.68,100.0]
[1719878556019,6.8178,146.68,146.66,100.0]
[1719878556217,6.8186,146.66,146.64,100.0]
[1719878556412,6.818,146.67,146.64,100.0]
[1719878557411,22.73,146.7,146.63,100.0]
[1719878557412,6.8185,146.66,146.63,100.0]
[1719878557622,6.8185,146.66,146.61,21.5084]
[1719878557839,6.8185,146.66,146.63,100.0]
[1719878558213,6.8185,146.66,146.61,15.701]
[1719878558214,6.8181,146.67,146.61,15.701]
[1719878558415,6.8181,146.67,146.63,100.0]
[1719878558718,6.8176,146.68,146.64,100.0]
[1719878559116,6.818,146.67,146.64,100.0]
[1719878560008,6.818,146.67,146.63,100.0]
[1719878560414,6.818,146.67,146.65,100.0]
[1719878563329,6.818,146.67,146.63,100.0]
[1719878563714,6.8185,146.66,146.62,100.0]
[1719878563917,22.73,146.7,146.6,100.0]
[1719878563918,22.73,146.67,146.6,100.0]
[1719878564225,6.8192,146.65,146.6,100.0]
[1719878564933,13.9256979,146.65,146.6,100.0]
[1719878565114,13.9256979,146.65,146.58,15.6272]
[1719878565318,13.9254979,146.65,146.6,100.0]
[1719878565532,6.8201,146.63,146.6,100.0]
[1719878566215,6.8212,146.61,146.58,100.0]
[1719878566420,22.73,146.64,146.58,100.0]
[1719878566620,6.8209,146.61,146.58,100.0]
[1719878566837,6.8204,146.62,146.58,100.0]
[1719878568138,6.8209,146.61,146.58,100.0]
[1719878568343,6.8213,146.6,146.58,100.0]
[1719878569640,6.8217,146.59,146.58,100.0]
[1719878570144,6.8217,146.59,146.56,100.0]
[1719878570517,6.8222,146.58,146.56,100.0]
[1719878571226,6.8226,146.57,146.56,100.0]
[1719878571426,6.8226,146.57,146.53,100.0]
[1719878572822,29.5523,146.58,146.53,100.0]
[1719878574217,29.5523,146.58,146.56,100.0]
[1719878574218,6.8223,146.58,146.56,100.0]
[1719878574419,6.8218,146.59,146.56,100.0]
[1719878574622,20.0,146.58,146.56,100.0]
[1719878577959,20.0,146.6,146.56,100.0]
[1719878578123,20.0,146.6,146.54,100.0]
[1719878578748,6.8226,146.57,146.54,100.0]
[1719878578948,6.8226,146.57,146.56,100.0]
[1719878579653,37.0539,146.6,146.48,16.541]
[1719878579856,6.8228,146.57,146.53,100.0]
[1719878580354,6.8218,146.59,146.55,100.0]
[1719878580549,26.8223,146.58,146.55,100.0]
[1719878580764,6.8226,146.57,146.55,100.0]
[1719878583236,6.8223,146.58,146.55,100.0]
[1719878583431,20.0,146.57,146.55,100.0]
[1719878583934,20.0,146.58,146.55,100.0]
[1719878584135,6.8213,146.6,146.57,100.0]
[1719878584338,13.92622755,146.61,146.59,100.0]
[1719878584638,6.822,146.59,146.57,100.0]
[1719878585653,6.8213,146.6,146.57,100.0]
[1719878585863,26.8217,146.59,146.57,100.0]
[1719878586056,20.0,146.59,146.54,100.0]
[1719878586259,6.8227,146.57,146.53,100.0]
[1719878586754,6.8227,146.57,146.55,100.0]
[1719878586961,6.8227,146.57,146.53,100.0]
[1719878587944,27.10333114,146.59,146.56,100.0]
[1719878588153,33.92513114,146.59,146.56,100.0]
[1719878588348,27.10333114,146.59,146.58,100.0]
[1719878588540,20.0,146.59,146.58,100.0]
[1719878588741,6.8203,146.62,146.6,100.0]
[1719878589376,7.10410398,146.63,146.62,100.0]
[1719878589655,6.8188,146.66,146.62,100.0]
[1719878589855,6.8194,146.64,146.62,100.0]
[1719878590659,20.0,146.63,146.62,100.0]
[1719878591259,13.92162266,146.67,146.64,100.0]
[1719878591479,7.10322266,146.67,146.64,100.0]
[1719878592049,13.92122266,146.67,146.64,100.0]
[1719878592567,20.0,146.66,146.64,100.0]
[1719878592779,13.92122266,146.67,146.64,100.0]
[1719878593378,6.8185,146.66,146.64,100.0]
[1719878593871,7.10322266,146.67,146.66,100.0]
[1719878594161,22.6959,146.69,146.66,100.0]
[1719878594461,20.0,146.67,146.66,100.0]
[1719878594979,6.818,146.67,146.66,100.0]
[1719878595643,6.8189,146.65,146.64,100.0]
[1719878595946,6.8197,146.64,146.61,100.0]
[1719878596144,6.819,146.65,146.63,100.0]
[1719878597062,17.0435,146.69,146.63,100.0]
[1719878597063,6.8194,146.64,146.63,100.0]
[1719878598461,6.8213,146.6,146.58,100.0]
[1719878598857,6.8213,146.6,146.56,100.0]
[1719878599560,6.8213,146.6,146.58,100.0]
[1719878599865,6.8209,146.61,146.58,100.0]
[1719878600363,22.73,146.63,146.61,100.0]
[1719878600573,16.2497,146.67,146.63,100.0]
[1719878600742,26.8186,146.66,146.63,100.0]
[1719878601752,6.8191,146.65,146.63,100.0]
[1719878601956,26.8185,146.66,146.63,100.0]
[1719878602154,26.8185,146.66,146.65,100.0]
[1719878602359,20.0,146.66,146.65,100.0]
[1719878603177,20.0,146.66,146.63,100.0]
[1719878603373,6.8191,146.65,146.63,100.0]
[1719878604055,6.8194,146.64,146.63,100.0]
[1719878605247,6.8185,146.66,146.63,100.0]
[1719878605566,20.0,146.65,146.64,1.36366497]
[1719878606066,13.92970413,146.67,146.66,100.0]
[1719878606272,33.92970413,146.67,146.66,100.0]
[1719878609174,26.818,146.67,146.66,100.0]
[1719878609672,20.0,146.67,146.65,100.0]
[1719878609973,6.8184,146.66,146.65,100.0]
[1719878610152,6.8194,146.64,146.63,100.0]
[1719878610353,6.819,146.65,146.63,100.0]
[1719878610852,6.819,146.65,146.64,1.36373791]
[1719878611362,26.817,146.69,146.68,100.0]
[1719878611963,20.0,146.69,146.68,100.0]
[1719878612660,26.817,146.69,146.68,100.0]
[1719878613855,20.0,146.69,146.66,100.0]
[1719878614575,6.8202,146.63,146.61,100.0]
[1719878615873,6.8194,146.64,146.63,100.0]
[1719878616451,6.819,146.65,146.63,100.0]
[1719878617771,6.8194,146.64,146.63,100.0]
[1719878618372,92.9624,146.69,146.6,100.0]
[1719878618557,20.0,146.64,146.6,100.0]
[1719878618757,6.8204,146.62,146.6,100.0]
[1719878619474,6.8198,146.63,146.61,1.36173848]
[1719878620061,6.8198,146.63,146.62,100.0]
[1719878620275,26.8198,146.63,146.62,100.0]
[1719878620458,6.8198,146.63,146.62,100.0]
[1719878620969,26.8198,146.63,146.62,100.0]
[1719878623680,26.8198,146.63,146.6,100.0]
[1719878623681,20.0,146.63,146.6,100.0]
[1719878623857,6.8208,146.61,146.6,100.0]
[1719878624058,6.8204,146.62,146.6,100.0]
[1719878626381,6.8208,146.61,146.6,100.0]
[1719878626585,6.8216,146.6,146.58,100.0]
[1719878627366,6.8209,146.61,146.58,100.0]
[1719878627772,6.8213,146.6,146.58,100.0]
[1719878629182,6.8213,146.6,146.56,100.0]
[1719878629498,26.8218,146.59,146.56,100.0]
[1719878630278,20.0,146.59,146.54,100.0]
[1719878630487,6.8233,146.56,146.54,100.0]
[1719878632593,6.8233,146.56,146.52,100.0]
[1719878632794,6.8237,146.55,146.52,100.0]
[1719878633001,6.8237,146.55,146.51,100.0]
[1719878633171,6.8237,146.55,146.53,100.0]
[1719878633375,6.8237,146.55,146.51,100.0]
[1719878634087,20.0,146.59,146.54,100.0]
[1719878634692,16.1829,146.58,146.52,100.0]
[1719878634889,42.73,146.57,146.52,100.0]
[1719878635403,6.8231,146.56,146.52,100.0]
[1719878635606,20.0,146.55,146.52,100.0]
[1719878637199,20.0,146.56,146.52,100.0]
[1719878637801,26.8232,146.56,146.52,100.0]
[1719878637981,26.8232,146.56,146.54,100.0]
[1719878638398,20.0,146.56,146.54,100.0]
[1719878638902,26.8231,146.56,146.54,100.0]
[1719878640017,6.8236,146.55,146.54,100.0]
[1719878640179,26.8236,146.55,146.54,100.0]
[1719878640609,20.0,146.55,146.54,100.0]
[1719878641694,26.8236,146.55,146.54,100.0]
[1719878641892,26.8236,146.55,146.52,100.0]
[1719878643401,20.0,146.55,146.52,100.0]
[1719878643790,11.4,146.53,146.52,100.0]
[1719878645611,11.4,146.53,146.52,100.0]
[1719878645821,7.12060404,146.56,146.55,100.0]
[1719878646025,18.52060404,146.56,146.55,100.0]
[1719878646317,11.4,146.56,146.55,100.0]
[1719878646492,18.2232,146.56,146.53,100.0]
[1719878646894,11.4,146.54,146.53,100.0]
[1719878650393,6.8223,146.58,146.54,100.0]
[1719878650394,11.4,146.55,146.54,100.0]
[1719878651990,6.8222,146.58,146.54,100.0]
[1719878652193,11.4,146.55,146.54,100.0]
[1719878655007,13.94071807,146.59,146.57,100.0]
[1719878655193,20.0,146.58,146.57,100.0]
[1719878655896,31.4,146.58,146.57,100.0]
[1719878658419,38.2222,146.58,146.57,100.0]
[1719878658798,6.8232,146.56,146.53,100.0]
[1719878659110,11.4,146.55,146.53,100.0]
[1719878659309,26.8226,146.58,146.53,100.0]
[1719878659513,11.4,146.56,146.55,100.0]
[1719878660526,18.2232,146.56,146.55,100.0]
[1719878660702,11.4,146.56,146.55,100.0]
[1719878661997,7.1238011,146.57,146.55,100.0]
[1719878662317,24.81721379,146.62,146.59,100.0]
[1719878662524,7.12278066,146.61,146.59,100.0]
[1719878662908,18.2214,146.6,146.59,100.0]
[1719878663500,38.2214,146.6,146.59,100.0]
[1719878664920,26.8214,146.6,146.59,100.0]
[1719878665127,20.0,146.6,146.59,100.0]
[1719878666524,38.2212,146.6,146.59,100.0]
[1719878667517,6.8218,146.59,146.57,100.0]
[1719878667822,6.8218,146.59,146.55,100.0]
[1719878668617,11.4,146.58,146.55,100.0]
[1719878670914,11.4,146.58,146.57,100.0]
[1719878671712,11.4,146.59,146.57,100.0]
[1719878672039,11.4,146.59,146.58,1.36431602]
[1719878672338,31.4,146.6,146.59,100.0]
[1719878673734,7.12278066,146.61,146.59,100.0]
[1719878673912,18.2199,146.63,146.62,100.0]
[1719878674232,26.8199,146.63,146.62,100.0]
[1719878674417,38.2199,146.63,146.62,100.0]
[1719878674930,18.2199,146.63,146.62,100.0]
[1719878675703,11.4,146.63,146.62,100.0]
[1719878675924,7.12573407,146.64,146.62,100.0]
[1719878676131,18.52573407,146.64,146.62,100.0]
[1719878676725,7.12573407,146.64,146.62,100.0]
[1719878676922,18.2188,146.66,146.65,100.0]
[1719878677122,38.2188,146.66,146.65,100.0]
[1719878677726,20.0,146.66,146.65,100.0]
[1719878678031,31.4,146.66,146.65,100.0]
[1719878678530,38.2184,146.66,146.65,100.0]
[1719878678725,31.4,146.66,146.65,100.0]
[1719878680430,38.2184,146.66,146.65,100.0]
[1719878685537,13.94216667,146.67,146.65,100.0]
[1719878685836,25.34216667,146.67,146.65,100.0]
[1719878687823,13.94216667,146.67,146.65,100.0]
[1719878689539,7.12406667,146.67,146.65,100.0]
[1719878691523,7.12406667,146.67,146.66,1.36346478]
[1719878691730,6.8162,146.71,146.7,100.0]
[1719878692238,11.4,146.73,146.7,100.0]
[1719878692443,18.2156,146.73,146.7,100.0]
[1719878692632,18.2156,146.73,146.72,100.0]
[1719878692832,6.8156,146.73,146.72,100.0]
[1719878693235,18.2148,146.74,146.72,100.0]
[1719878693441,6.8148,146.74,146.73,1.36110964]
[1719878693947,26.8148,146.74,146.73,1.36110964]
[1719878694933,6.8152,146.73,146.72,100.0]
[1719878695133,26.8152,146.73,146.72,100.0]
[1719878696751,20.0,146.73,146.72,100.0]
[1719878697840,25.29641379,146.79,146.74,100.0]
[1719878698140,11.4,146.76,146.74,100.0]
[1719878698733,10.9,146.76,146.74,100.0]
[1719878698954,18.214,146.76,146.74,100.0]
[1719878700348,11.4,146.76,146.74,100.0]
[1719878700564,6.8135,146.77,146.76,100.0]
[1719878700856,31.4,146.77,146.76,100.0]
[1719878701056,6.8125,146.79,146.78,100.0]
[1719878701459,11.4,146.79,146.78,100.0]
[1719878701635,18.2121,146.8,146.78,100.0]
[1719878702457,26.8124,146.79,146.78,100.0]
[1719878702755,20.0,146.79,146.78,100.0]
[1719878703259,31.4,146.79,146.78,100.0]
[1719878703953,6.8116,146.81,146.8,100.0]
[1719878704156,11.4,146.81,146.8,100.0]
[1719878704349,38.2115,146.81,146.8,100.0]
[1719878705458,26.8115,146.81,146.8,100.0]
[1719878705755,31.4,146.81,146.8,100.0]
[1719878708555,11.4,146.81,146.8,100.0]
[1719878709045,15.52841379,146.83,146.8,100.0]
[1719878709253,11.4,146.81,146.8,100.0]
[1719878710047,18.2115,146.81,146.8,100.0]
[1719878710455,11.4,146.81,146.8,100.0]
[1719878712560,11.4,146.81,146.76,100.0]
[1719878712561,18.2115,146.81,146.76,100.0]
[1719878713055,18.2115,146.81,146.78,100.0]
[1719878713243,11.4,146.81,146.78,100.0]
[1719878713661,11.4,146.8,146.78,100.0]
[1719878714167,11.4,146.79,146.78,100.0]
[1719878715038,11.4,146.8,146.78,100.0]
[1719878719862,8.71771379,146.83,146.74,116.6067]
[1719878719863,11.4,146.79,146.74,116.6067]
[1719878720051,11.4,146.76,146.74,100.0]
[1719878720367,11.4,146.75,146.74,100.0]
[1719878720542,11.4,146.75,146.72,100.0]
[1719878720739,11.4,146.74,146.72,100.0]
[1719878721340,11.4,146.73,146.68,100.0]
[1719878721554,6.8151,146.74,146.68,100.0]
[1719878721756,11.4,146.71,146.68,100.0]
[1719878721944,6.1982,146.75,146.66,5.8074]
[1719878721945,6.1982,146.75,146.7,100.0]
[1719878722148,20.0,146.74,146.73,100.0]
[1719878722868,31.4,146.74,146.71,100.0]
[1719878723040,38.2149,146.74,146.71,100.0]
[1719878723242,26.8149,146.74,146.71,100.0]
[1719878723459,11.4,146.72,146.71,100.0]
[1719878724258,11.4,146.72,146.68,100.0]
[1719878724464,20.0,146.71,146.68,100.0]
[1719878724971,11.4,146.69,146.68,100.0]
[1719878725164,20.0,146.71,146.7,100.0]
[1719878725358,13.0126,146.75,146.72,100.0]
[1719878725582,11.4,146.73,146.72,100.0]
[1719878725866,31.4,146.73,146.72,100.0]
[1719878727370,10.95,146.73,146.72,100.0]
[1719878727576,14.44017666,146.78,146.76,100.0]
[1719878727577,6.57626753,146.78,146.76,100.0]
[1719878728073,10.95,146.77,146.76,100.0]
[1719878728283,17.7633,146.77,146.76,100.0]
[1719878729157,10.95,146.77,146.76,100.0]
[1719878729772,30.95,146.77,146.76,100.0]
[1719878730470,20.0,146.77,146.76,100.0]
[1719878730677,30.95,146.77,146.76,100.0]
[1719878731369,37.7635,146.77,146.75,100.0]
[1719878731557,30.95,146.76,146.73,100.0]
[1719878731750,10.95,146.74,146.73,100.0]
[1719878732154,10.95,146.74,146.69,100.0]
[1719878732361,20.0,146.76,146.69,100.0]
[1719878732362,10.95,146.7,146.69,100.0]
[1719878733094,10.95,146.7,146.67,100.0]
[1719878733268,10.95,146.68,146.67,100.0]
[1719878734357,10.95,146.69,146.68,100.0]
[1719878735167,10.95,146.69,146.64,26.5434]
[1719878735168,28.6911,146.73,146.7,100.0]
[1719878735373,20.0,146.72,146.7,100.0]
[1719878736074,63.8,146.72,146.7,100.0]
[1719878736270,10.95,146.71,146.7,100.0]
[1719878736574,30.95,146.71,146.7,100.0]
[1719878737079,20.0,146.71,146.7,100.0]
[1719878737279,30.95,146.71,146.7,100.0]
[1719878740800,37.7661,146.71,146.7,100.0]
[1719878745096,30.95,146.71,146.7,100.0]
[1719878745457,46.87956935,146.76,146.73,100.0]
[1719878745664,29.84436935,146.76,146.73,100.0]
[1719878745887,17.7648,146.74,146.73,100.0]
[1719878746059,37.7648,146.74,146.73,100.0]
[1719878746785,17.7648,146.74,146.73,100.0]
[1719878747959,37.7648,146.74,146.73,100.0]
[1719878748465,26.8148,146.74,146.73,100.0]
[1719878748773,30.95,146.74,146.73,100.0]
[1719878752990,20.0,146.74,146.73,100.0]
[1719878753368,30.95,146.74,146.73,100.0]
[1719878754192,20.0,146.74,146.73,100.0]
[1719878754977,10.95,146.75,146.73,100.0]
[1719878755383,10.95,146.76,146.75,100.0]
[1719878755566,30.95,146.76,146.75,100.0]
[1719878755971,10.95,146.76,146.75,100.0]
[1719878758495,6.8129,146.78,146.77,100.0]
[1719878758701,26.8129,146.78,146.77,100.0]
[1719878759190,37.7629,146.78,146.77,100.0]
[1719878760393,6.8134,146.77,146.75,100.0]
[1719878761094,6.8138,146.76,146.75,100.0]
[1719878761281,26.8138,146.76,146.75,100.0]
[1719878761480,37.7638,146.76,146.75,100.0]
[1719878762387,30.95,146.76,146.7,100.0]
[1719878762694,17.7661,146.71,146.67,100.0]
[1719878762900,10.95,146.68,146.67,100.0]
[1719878763693,10.95,146.68,146.65,100.0]
[1719878764083,17.7676,146.68,146.65,100.0]
[1719878764481,10.95,146.66,146.65,100.0]
[1719878767998,48.7186,146.66,146.61,100.0]
[1719878768203,10.95,146.62,146.61,100.0]
[1719878768502,10.95,146.62,146.6,100.0]
[1719878768696,10.95,146.61,146.6,100.0]
[1719878770004,36.4455,146.67,146.64,100.0]